[Event "Titled Tuesday Blitz May 24 Early 2022"]
[White "Silvestre, Christian"]
[Black "Tomaszewski, Kacper"]
[WhiteFideId "30956269"]
[BlackFideId "1127373"]
[WhiteElo "2263"]
[BlackElo "2153"]
[Result "0-1"]
[Round "03"]
[TimeControl "180+1"]
[Date "2022.05.25"]
[WhiteClock "0:00:02"]
[BlackClock "0:00:11"]

1. d4 {[%clk 0:03:00]}  d5 {[%clk 0:02:56]} 2. Nf3 {[%clk 0:03:00]}  Nf6 {[%clk 0:02:54]} 3. Bf4 {[%clk 0:02:59]}  c5 {[%clk 0:02:52]} 4. c3 {[%clk 0:02:57]}  Nc6 {[%clk 0:02:51]} 5. e3 {[%clk 0:02:57]}  cxd4 {[%clk 0:02:51]} 6. exd4 {[%clk 0:02:57]}  Bf5 {[%clk 0:02:48]} 7. Bb5 {[%clk 0:02:52]}  Qc8 {[%clk 0:02:35]} 8. Ne5 {[%clk 0:02:46]}  a6 {[%clk 0:02:27]} 9. Bxc6+ {[%clk 0:02:40]}  bxc6 {[%clk 0:02:27]} 10. Qa4 {[%clk 0:02:39]}  Bd7 {[%clk 0:02:27]} 11. Nxd7 {[%clk 0:02:38]}  Nxd7 {[%clk 0:02:26]} 12. O-O {[%clk 0:02:37]}  e6 {[%clk 0:02:26]} 13. Nd2 {[%clk 0:02:35]}  Be7 {[%clk 0:02:26]} 14. Nf3 {[%clk 0:02:21]}  O-O {[%clk 0:02:26]} 15. Qc2 {[%clk 0:02:17]}  c5 {[%clk 0:02:23]} 16. dxc5 {[%clk 0:02:14]}  Nxc5 {[%clk 0:02:22]} 17. Rfe1 {[%clk 0:02:09]}  Ne4 {[%clk 0:02:19]} 18. Rad1 {[%clk 0:02:09]}  Qb7 {[%clk 0:02:08]} 19. c4 {[%clk 0:02:02]}  Rac8 {[%clk 0:02:06]} 20. b3 {[%clk 0:01:56]}  Bb4 {[%clk 0:02:04]} 21. Re3 {[%clk 0:01:49]}  Bc5 {[%clk 0:01:54]} 22. Re2 {[%clk 0:01:44]}  Nf6 {[%clk 0:01:44]} 23. Ng5 {[%clk 0:01:26]}  h6 {[%clk 0:01:41]} 24. Nf3 {[%clk 0:01:13]}  Rfd8 {[%clk 0:01:37]} 25. Be5 {[%clk 0:01:10]}  Ng4 {[%clk 0:01:30]} 26. h3 {[%clk 0:01:05]}  Nxe5 {[%clk 0:01:23]} 27. Nxe5 {[%clk 0:01:04]}  dxc4 {[%clk 0:01:22]} 28. Nxc4 {[%clk 0:01:05]}  Rxd1+ {[%clk 0:01:17]} 29. Qxd1 {[%clk 0:01:06]}  Bb4 {[%clk 0:00:46]} 30. Re3 {[%clk 0:00:57]}  Qe7 {[%clk 0:00:34]} 31. Rd3 {[%clk 0:00:53]}  Bc5 {[%clk 0:00:33]} 32. Qf3 {[%clk 0:00:46]}  Qf6 {[%clk 0:00:28]} 33. Qxf6 {[%clk 0:00:44]}  gxf6 {[%clk 0:00:29]} 34. Kf1 {[%clk 0:00:42]}  Kg7 {[%clk 0:00:25]} 35. Rd7 {[%clk 0:00:40]}  Kg6 {[%clk 0:00:16]} 36. Ke2 {[%clk 0:00:40]}  e5 {[%clk 0:00:14]} 37. Rb7 {[%clk 0:00:19]}  Bd4 {[%clk 0:00:14]} 38. f3 {[%clk 0:00:18]}  Rc6 {[%clk 0:00:12]} 39. g3 {[%clk 0:00:17]}  f5 {[%clk 0:00:12]} 40. Rd7 {[%clk 0:00:16]}  Re6 {[%clk 0:00:12]} 41. Rd6 {[%clk 0:00:16]}  Rxd6 {[%clk 0:00:11]} 42. Nxd6 {[%clk 0:00:17]}  e4 {[%clk 0:00:11]} 43. fxe4 {[%clk 0:00:16]}  fxe4 {[%clk 0:00:11]} 44. Nxe4 {[%clk 0:00:17]}  Be5 {[%clk 0:00:11]} 45. Kf3 {[%clk 0:00:16]}  f5 {[%clk 0:00:11]} 46. Nc5 {[%clk 0:00:14]}  a5 {[%clk 0:00:12]} 47. Nb7 {[%clk 0:00:08]}  Bc7 {[%clk 0:00:11]} 48. Nc5 {[%clk 0:00:07]}  Kf6 {[%clk 0:00:11]} 49. Nd3 {[%clk 0:00:04]}  Ke6 {[%clk 0:00:11]} 50. Nf4+ {[%clk 0:00:04]}  Ke5 {[%clk 0:00:11]} 51. Ng6+ {[%clk 0:00:04]}  Kd4 {[%clk 0:00:10]} 52. Nf4 {[%clk 0:00:05]}  Kc3 {[%clk 0:00:10]} 53. Nd5+ {[%clk 0:00:01]}  Kb2 {[%clk 0:00:10]} 54. Nxc7 {[%clk 0:00:02]}  Kxa2 {[%clk 0:00:11]} 55. Nd5 {[%clk 0:00:02]}  Kxb3 {[%clk 0:00:11]} 56. Nb6 {[%clk 0:00:02]}  Kb4 {[%clk 0:00:11]} 0-1


[Site "https://www.chess.com"]

[Event "Titled Tuesday Blitz May 24 Early 2022"]
[White "Sjugirov, Sanan"]
[Black "Volkov, Maksim"]
[WhiteFideId "4189302"]
[BlackFideId "54123070"]
[WhiteElo "2602"]
[BlackElo "2155"]
[Result "1-0"]
[Round "03"]
[TimeControl "180+1"]
[Date "2022.05.24"]
[WhiteClock "0:00:44"]
[BlackClock "0:00:25"]

1. e4 {[%clk 0:03:00]}  e6 {[%clk 0:03:00]} 2. d4 {[%clk 0:02:59]}  d5 {[%clk 0:03:00]} 3. e5 {[%clk 0:03:00]}  c5 {[%clk 0:03:00]} 4. c3 {[%clk 0:03:00]}  Qb6 {[%clk 0:02:59]} 5. Nf3 {[%clk 0:03:01]}  Bd7 {[%clk 0:03:00]} 6. g3 {[%clk 0:02:58]}  Nc6 {[%clk 0:02:51]} 7. Bg2 {[%clk 0:02:29]}  Qa6 {[%clk 0:02:40]} 8. Bf1 {[%clk 0:02:28]}  Qb6 {[%clk 0:02:39]} 9. Be2 {[%clk 0:02:23]}  Nh6 {[%clk 0:02:38]} 10. Bxh6 {[%clk 0:02:13]}  gxh6 {[%clk 0:02:39]} 11. b3 {[%clk 0:02:04]}  Rc8 {[%clk 0:02:26]} 12. O-O {[%clk 0:02:01]}  Bg7 {[%clk 0:02:22]} 13. Na3 {[%clk 0:01:56]}  a6 {[%clk 0:02:18]} 14. Nc2 {[%clk 0:01:54]}  O-O {[%clk 0:02:07]} 15. Ne3 {[%clk 0:01:52]}  f6 {[%clk 0:02:06]} 16. exf6 {[%clk 0:01:51]}  Bxf6 {[%clk 0:02:05]} 17. Ng4 {[%clk 0:01:51]}  Bg7 {[%clk 0:02:05]} 18. Nge5 {[%clk 0:01:44]}  Be8 {[%clk 0:02:00]} 19. Nxc6 {[%clk 0:01:42]}  Qxc6 {[%clk 0:01:57]} 20. Ne5 {[%clk 0:01:38]}  Qb6 {[%clk 0:01:51]} 21. Bg4 {[%clk 0:01:35]}  Rc7 {[%clk 0:01:28]} 22. Qd2 {[%clk 0:01:34]}  Kh8 {[%clk 0:01:18]} 23. Rae1 {[%clk 0:01:30]}  Re7 {[%clk 0:01:14]} 24. Kg2 {[%clk 0:01:28]}  Qa5 {[%clk 0:01:11]} 25. b4 {[%clk 0:01:26]}  cxb4 {[%clk 0:01:10]} 26. cxb4 {[%clk 0:01:27]}  Qb6 {[%clk 0:01:08]} 27. h4 {[%clk 0:01:21]}  Rg8 {[%clk 0:01:00]} 28. Bh3 {[%clk 0:01:20]}  Bf8 {[%clk 0:00:55]} 29. Re3 {[%clk 0:01:15]}  Reg7 {[%clk 0:00:52]} 30. a3 {[%clk 0:01:14]}  Be7 {[%clk 0:00:48]} 31. Nf3 {[%clk 0:01:12]}  Bd7 {[%clk 0:00:46]} 32. Rfe1 {[%clk 0:01:08]}  Bf6 {[%clk 0:00:45]} 33. Bxe6 {[%clk 0:01:07]}  Bxe6 {[%clk 0:00:39]} 34. Rxe6 {[%clk 0:01:08]}  Qd8 {[%clk 0:00:40]} 35. Qxh6 {[%clk 0:01:06]}  Rg6 {[%clk 0:00:40]} 36. Qf4 {[%clk 0:01:05]}  Rf8 {[%clk 0:00:38]} 37. h5 {[%clk 0:01:03]}  Rgg8 {[%clk 0:00:34]} 38. Rd6 {[%clk 0:01:01]}  Qc7 {[%clk 0:00:29]} 39. Rc1 {[%clk 0:01:00]}  Qb8 {[%clk 0:00:29]} 40. Rxf6 {[%clk 0:00:54]}  Qxf4 {[%clk 0:00:28]} 41. Rxf4 {[%clk 0:00:55]}  Rxf4 {[%clk 0:00:29]} 42. Rc7 {[%clk 0:00:55]}  Rfg4 {[%clk 0:00:25]} 43. Rxb7 {[%clk 0:00:53]}  R4g7 {[%clk 0:00:25]} 44. Rb6 {[%clk 0:00:52]}  Ra8 {[%clk 0:00:26]} 45. h6 {[%clk 0:00:51]}  Rg6 {[%clk 0:00:25]} 46. Rxg6 {[%clk 0:00:51]}  hxg6 {[%clk 0:00:26]} 47. Ng5 {[%clk 0:00:52]}  Rc8 {[%clk 0:00:26]} 48. Ne6 {[%clk 0:00:48]}  Kh7 {[%clk 0:00:24]} 49. Nc5 {[%clk 0:00:47]}  Rc6 {[%clk 0:00:24]} 50. Kf3 {[%clk 0:00:45]}  Kxh6 {[%clk 0:00:24]} 51. Kf4 {[%clk 0:00:44]}  Rf6+ {[%clk 0:00:24]} 52. Ke3 {[%clk 0:00:45]}  Rxf2 {[%clk 0:00:25]} 53. Kxf2 {[%clk 0:00:44]} 1-0


[Site "https://www.chess.com"]

[Event "Titled Tuesday Blitz May 24 Early 2022"]
[White "Soumya, Swaminathan"]
[Black "Keller, Peter"]
[WhiteFideId "5016193"]
[BlackFideId "1272105"]
[WhiteElo "2115"]
[BlackElo "2275"]
[Result "0-1"]
[Round "03"]
[TimeControl "180+1"]
[Date "2022.05.25"]
[WhiteClock "0:00:01"]
[BlackClock "0:00:13"]

1. d4 {[%clk 0:02:50]}  Nf6 {[%clk 0:02:57]} 2. c4 {[%clk 0:02:49]}  e6 {[%clk 0:02:57]} 3. Nf3 {[%clk 0:02:49]}  d5 {[%clk 0:02:58]} 4. g3 {[%clk 0:02:48]}  Bb4+ {[%clk 0:02:54]} 5. Bd2 {[%clk 0:02:47]}  a5 {[%clk 0:02:54]} 6. Bg2 {[%clk 0:02:39]}  O-O {[%clk 0:02:48]} 7. O-O {[%clk 0:02:34]}  dxc4 {[%clk 0:02:48]} 8. Qc2 {[%clk 0:02:32]}  b5 {[%clk 0:02:41]} 9. a4 {[%clk 0:02:13]}  c6 {[%clk 0:02:38]} 10. Ne5 {[%clk 0:01:52]}  Ra6 {[%clk 0:01:54]} 11. Rd1 {[%clk 0:01:03]}  Nd5 {[%clk 0:01:43]} 12. e4 {[%clk 0:00:54]}  Nb6 {[%clk 0:01:43]} 13. axb5 {[%clk 0:00:15]}  cxb5 {[%clk 0:01:44]} 14. Na3 {[%clk 0:00:15]}  Bd7 {[%clk 0:01:29]} 15. Nxd7 {[%clk 0:00:11]}  Qxd7 {[%clk 0:01:30]} 16. Bf1 {[%clk 0:00:07]}  Rc8 {[%clk 0:01:20]} 17. Be3 {[%clk 0:00:04]}  Qc6 {[%clk 0:01:13]} 18. f3 {[%clk 0:00:03]}  Bxa3 {[%clk 0:01:05]} 19. Rxa3 {[%clk 0:00:02]}  b4 {[%clk 0:01:05]} 20. Raa1 {[%clk 0:00:02]}  Ra8 {[%clk 0:00:51]} 21. Qf2 {[%clk 0:00:02]}  N8d7 {[%clk 0:00:50]} 22. Bg2 {[%clk 0:00:02]}  c3 {[%clk 0:00:44]} 23. bxc3 {[%clk 0:00:02]}  bxc3 {[%clk 0:00:38]} 24. Rac1 {[%clk 0:00:02]}  Na4 {[%clk 0:00:20]} 25. f4 {[%clk 0:00:01]}  Rab8 {[%clk 0:00:19]} 26. d5 {[%clk 0:00:01]}  exd5 {[%clk 0:00:18]} 27. exd5 {[%clk 0:00:02]}  Qc4 {[%clk 0:00:17]} 28. Rd4 {[%clk 0:00:01]}  Qb3 {[%clk 0:00:17]} 29. Be4 {[%clk 0:00:01]}  Nf6 {[%clk 0:00:15]} 30. Bd3 {[%clk 0:00:01]}  Qb2 {[%clk 0:00:13]} 0-1


[Site "https://www.chess.com"]

[Event "Titled Tuesday Blitz May 24 Early 2022"]
[White "Sovetbekova, Nurai"]
[Black "Bintang, Rasyid A. Hidayat"]
[WhiteFideId "13801910"]
[BlackFideId "7105355"]
[WhiteElo "1660"]
[BlackElo "2442"]
[Result "1-0"]
[Round "03"]
[TimeControl "180+1"]
[Date "2022.05.25"]
[WhiteClock "0:01:03"]
[BlackClock "0:02:29"]

1. d4 {[%clk 0:03:00]}  d5 {[%clk 0:02:57]} 2. c4 {[%clk 0:03:00]}  Nc6 {[%clk 0:02:57]} 3. Nf3 {[%clk 0:02:59]}  Bg4 {[%clk 0:02:57]} 4. cxd5 {[%clk 0:02:56]}  Bxf3 {[%clk 0:02:57]} 5. dxc6 {[%clk 0:02:56]}  Bxc6 {[%clk 0:02:57]} 6. Nc3 {[%clk 0:02:56]}  e6 {[%clk 0:02:58]} 7. e3 {[%clk 0:02:30]}  Nf6 {[%clk 0:02:56]} 8. Bb5 {[%clk 0:02:25]}  Qd7 {[%clk 0:02:55]} 9. Bxc6 {[%clk 0:02:24]}  Qxc6 {[%clk 0:02:55]} 10. O-O {[%clk 0:02:24]}  Bb4 {[%clk 0:02:55]} 11. Bd2 {[%clk 0:02:24]}  Bxc3 {[%clk 0:02:54]} 12. Bxc3 {[%clk 0:02:22]}  O-O {[%clk 0:02:55]} 13. Rc1 {[%clk 0:02:22]}  Qa6 {[%clk 0:02:54]} 14. Qb3 {[%clk 0:02:09]}  Nd5 {[%clk 0:02:53]} 15. Bd2 {[%clk 0:02:09]}  c6 {[%clk 0:02:52]} 16. Rfd1 {[%clk 0:02:03]}  Rfd8 {[%clk 0:02:52]} 17. e4 {[%clk 0:01:58]}  Nf6 {[%clk 0:02:51]} 18. Bg5 {[%clk 0:01:57]}  Qe2 {[%clk 0:02:43]} 19. Bxf6 {[%clk 0:01:36]}  gxf6 {[%clk 0:02:43]} 20. Qg3+ {[%clk 0:01:36]}  Kf8 {[%clk 0:02:42]} 21. Qh4 {[%clk 0:01:14]}  Qxb2 {[%clk 0:02:37]} 22. Qxf6 {[%clk 0:01:12]}  Qxa2 {[%clk 0:02:32]} 23. d5 {[%clk 0:01:08]}  cxd5 {[%clk 0:02:29]} 24. Rc7 {[%clk 0:01:03]} 1-0


[Site "https://www.chess.com"]

[Event "Titled Tuesday Blitz May 24 Early 2022"]
[White "Steenbekkers, Franck"]
[Black "Vidonyak, Roman"]
[WhiteFideId "1004220"]
[BlackFideId "14100622"]
[WhiteElo "2022"]
[BlackElo "2357"]
[Result "0-1"]
[Round "03"]
[TimeControl "180+1"]
[Date "2022.05.25"]
[WhiteClock "0:00:13"]
[BlackClock "0:00:34"]

1. e4 {[%clk 0:02:57]}  c5 {[%clk 0:03:00]} 2. Nf3 {[%clk 0:02:51]}  d6 {[%clk 0:02:58]} 3. d4 {[%clk 0:02:50]}  cxd4 {[%clk 0:02:59]} 4. Nxd4 {[%clk 0:02:50]}  Nf6 {[%clk 0:03:00]} 5. Nc3 {[%clk 0:02:51]}  a6 {[%clk 0:03:00]} 6. Bg5 {[%clk 0:02:50]}  Nbd7 {[%clk 0:03:00]} 7. Bc4 {[%clk 0:02:47]}  Qb6 {[%clk 0:02:55]} 8. Bb3 {[%clk 0:02:47]}  e6 {[%clk 0:02:55]} 9. Qd2 {[%clk 0:02:41]}  Be7 {[%clk 0:02:55]} 10. O-O-O {[%clk 0:02:39]}  Qc7 {[%clk 0:02:55]} 11. h4 {[%clk 0:02:37]}  b5 {[%clk 0:02:55]} 12. f3 {[%clk 0:02:31]}  Nc5 {[%clk 0:02:55]} 13. Kb1 {[%clk 0:02:29]}  Bb7 {[%clk 0:02:54]} 14. g4 {[%clk 0:02:27]}  Rc8 {[%clk 0:02:35]} 15. Bxf6 {[%clk 0:02:11]}  Bxf6 {[%clk 0:02:33]} 16. Ndxb5 {[%clk 0:02:06]}  axb5 {[%clk 0:02:22]} 17. Nxb5 {[%clk 0:02:06]}  Qb6 {[%clk 0:02:11]} 18. Nxd6+ {[%clk 0:02:05]}  Ke7 {[%clk 0:02:06]} 19. g5 {[%clk 0:01:57]}  Be5 {[%clk 0:02:05]} 20. Nxc8+ {[%clk 0:01:51]}  Rxc8 {[%clk 0:02:06]} 21. f4 {[%clk 0:01:51]}  Bb8 {[%clk 0:01:35]} 22. f5 {[%clk 0:01:49]}  Nxe4 {[%clk 0:01:33]} 23. f6+ {[%clk 0:01:37]}  Kf8 {[%clk 0:01:25]} 24. fxg7+ {[%clk 0:01:10]}  Kxg7 {[%clk 0:01:21]} 25. Qe1 {[%clk 0:01:09]}  Nf2 {[%clk 0:01:17]} 26. Qf1 {[%clk 0:00:42]}  Nxh1 {[%clk 0:01:01]} 27. Rd7 {[%clk 0:00:39]}  Nf2 {[%clk 0:00:43]} 28. h5 {[%clk 0:00:31]}  Rd8 {[%clk 0:00:37]} 29. h6+ {[%clk 0:00:17]}  Kg8 {[%clk 0:00:33]} 30. Rxd8+ {[%clk 0:00:13]}  Qxd8 {[%clk 0:00:34]} 31. Qxf2 {[%clk 0:00:13]}  Qd1# {[%clk 0:00:34]} 0-1


[Site "https://www.chess.com"]

[Event "Titled Tuesday Blitz May 24 Early 2022"]
[White "Stepanencu, Nicodim-Cosmin"]
[Black "Fier, Alexandr"]
[WhiteFideId "1256220"]
[BlackFideId "2107139"]
[WhiteElo "1945"]
[BlackElo "2571"]
[Result "1-0"]
[Round "03"]
[TimeControl "180+1"]
[Date "2022.05.25"]
[WhiteClock "0:00:03"]
[BlackClock "0:00:54"]

1. b3 {[%clk 0:03:00]}  e5 {[%clk 0:02:57]} 2. Bb2 {[%clk 0:03:00]}  Nc6 {[%clk 0:02:55]} 3. c4 {[%clk 0:03:00]}  g6 {[%clk 0:02:52]} 4. Nf3 {[%clk 0:02:56]}  Bg7 {[%clk 0:02:52]} 5. e3 {[%clk 0:02:56]}  d6 {[%clk 0:02:52]} 6. d4 {[%clk 0:02:56]}  exd4 {[%clk 0:02:41]} 7. Nxd4 {[%clk 0:02:55]}  Nf6 {[%clk 0:02:40]} 8. Be2 {[%clk 0:02:52]}  O-O {[%clk 0:02:40]} 9. O-O {[%clk 0:02:52]}  Re8 {[%clk 0:02:40]} 10. Nd2 {[%clk 0:02:51]}  h5 {[%clk 0:02:36]} 11. h3 {[%clk 0:02:50]}  Bd7 {[%clk 0:02:35]} 12. Rc1 {[%clk 0:02:45]}  Qc8 {[%clk 0:02:33]} 13. Re1 {[%clk 0:02:41]}  Ne5 {[%clk 0:02:31]} 14. Bf1 {[%clk 0:02:39]}  a6 {[%clk 0:02:28]} 15. N4f3 {[%clk 0:02:21]}  Bc6 {[%clk 0:02:24]} 16. Nd4 {[%clk 0:02:17]}  Bd7 {[%clk 0:02:16]} 17. N4f3 {[%clk 0:02:16]}  Nc6 {[%clk 0:02:15]} 18. e4 {[%clk 0:02:08]}  Ne5 {[%clk 0:02:11]} 19. Nxe5 {[%clk 0:02:06]}  dxe5 {[%clk 0:02:11]} 20. Nf3 {[%clk 0:02:06]}  Nh7 {[%clk 0:02:09]} 21. Qd5 {[%clk 0:01:48]}  Bc6 {[%clk 0:02:08]} 22. Qc5 {[%clk 0:01:48]}  Qe6 {[%clk 0:02:05]} 23. Rcd1 {[%clk 0:01:42]}  g5 {[%clk 0:01:59]} 24. Qe3 {[%clk 0:01:12]}  Qg6 {[%clk 0:01:51]} 25. g3 {[%clk 0:00:59]}  Bf6 {[%clk 0:01:45]} 26. Bg2 {[%clk 0:00:45]}  Nf8 {[%clk 0:01:44]} 27. b4 {[%clk 0:00:40]}  b6 {[%clk 0:01:38]} 28. c5 {[%clk 0:00:30]}  b5 {[%clk 0:01:35]} 29. a3 {[%clk 0:00:30]}  a5 {[%clk 0:01:35]} 30. Nd2 {[%clk 0:00:27]}  axb4 {[%clk 0:01:33]} 31. axb4 {[%clk 0:00:27]}  Ne6 {[%clk 0:01:33]} 32. Nb3 {[%clk 0:00:27]}  Red8 {[%clk 0:01:18]} 33. Na5 {[%clk 0:00:27]}  Be8 {[%clk 0:01:18]} 34. Rd5 {[%clk 0:00:26]}  c6 {[%clk 0:01:16]} 35. Rd6 {[%clk 0:00:23]}  Rxd6 {[%clk 0:01:11]} 36. cxd6 {[%clk 0:00:24]}  Rd8 {[%clk 0:01:12]} 37. Nb7 {[%clk 0:00:21]}  Rd7 {[%clk 0:01:11]} 38. Qb6 {[%clk 0:00:21]}  Nd8 {[%clk 0:01:09]} 39. Nxd8 {[%clk 0:00:15]}  Rxd8 {[%clk 0:01:10]} 40. Rd1 {[%clk 0:00:14]}  Bd7 {[%clk 0:01:06]} 41. Bxe5 {[%clk 0:00:11]}  Re8 {[%clk 0:01:06]} 42. Bxf6 {[%clk 0:00:09]}  Qxf6 {[%clk 0:01:07]} 43. Qc7 {[%clk 0:00:08]}  Qe6 {[%clk 0:01:08]} 44. e5 {[%clk 0:00:06]}  Rc8 {[%clk 0:01:07]} 45. Qb7 {[%clk 0:00:06]}  h4 {[%clk 0:01:07]} 46. g4 {[%clk 0:00:07]}  Kf8 {[%clk 0:01:07]} 47. Be4 {[%clk 0:00:07]}  Rd8 {[%clk 0:01:03]} 48. Bf5 {[%clk 0:00:06]}  Qb3 {[%clk 0:01:04]} 49. Rd3 {[%clk 0:00:04]}  Qb1+ {[%clk 0:01:04]} 50. Kg2 {[%clk 0:00:04]}  Bxf5 {[%clk 0:01:05]} 51. Qe7+ {[%clk 0:00:03]}  Kg7 {[%clk 0:01:05]} 52. Qf6+ {[%clk 0:00:03]}  Kh7 {[%clk 0:01:00]} 53. Qxf5+ {[%clk 0:00:03]}  Kg7 {[%clk 0:01:01]} 54. Qxg5+ {[%clk 0:00:04]}  Kh7 {[%clk 0:01:01]} 55. Qxh4+ {[%clk 0:00:03]}  Kg7 {[%clk 0:01:01]} 56. Qg5+ {[%clk 0:00:04]}  Kh7 {[%clk 0:01:01]} 57. Rf3 {[%clk 0:00:04]}  Rf8 {[%clk 0:01:01]} 58. e6 {[%clk 0:00:04]}  f5 {[%clk 0:01:00]} 59. e7 {[%clk 0:00:04]}  fxg4 {[%clk 0:00:56]} 60. Rxf8 {[%clk 0:00:03]}  gxh3+ {[%clk 0:00:55]} 61. Kh2 {[%clk 0:00:03]}  Qe4 {[%clk 0:00:54]} 62. Rf7+ {[%clk 0:00:02]}  Kh8 {[%clk 0:00:54]} 63. Qg7# {[%clk 0:00:03]} 1-0


[Site "https://www.chess.com"]

[Event "Titled Tuesday Blitz May 24 Early 2022"]
[White "Stromboli, Ettore"]
[Black "Johnson, Ben"]
[WhiteFideId "813761"]
[BlackFideId "2010917"]
[WhiteElo "2414"]
[BlackElo "2215"]
[Result "1-0"]
[Round "03"]
[TimeControl "180+1"]
[Date "2022.05.25"]
[WhiteClock "0:01:50"]
[BlackClock "0:00:07"]

1. e4 {[%clk 0:03:00]}  c5 {[%clk 0:02:59]} 2. Nf3 {[%clk 0:03:00]}  Nc6 {[%clk 0:02:59]} 3. c4 {[%clk 0:03:01]}  e5 {[%clk 0:02:52]} 4. Nc3 {[%clk 0:03:02]}  Nf6 {[%clk 0:02:51]} 5. d3 {[%clk 0:03:03]}  Be7 {[%clk 0:02:50]} 6. Be3 {[%clk 0:03:04]}  O-O {[%clk 0:02:48]} 7. Be2 {[%clk 0:03:04]}  d6 {[%clk 0:02:47]} 8. O-O {[%clk 0:03:05]}  Bg4 {[%clk 0:02:47]} 9. a3 {[%clk 0:03:06]}  a5 {[%clk 0:02:46]} 10. Rb1 {[%clk 0:03:07]}  Bxf3 {[%clk 0:02:42]} 11. Bxf3 {[%clk 0:03:04]}  Nd4 {[%clk 0:02:43]} 12. Bxd4 {[%clk 0:03:04]}  cxd4 {[%clk 0:02:37]} 13. Nb5 {[%clk 0:03:03]}  Ne8 {[%clk 0:02:32]} 14. b3 {[%clk 0:03:03]}  Nc7 {[%clk 0:02:30]} 15. Nxc7 {[%clk 0:03:02]}  Qxc7 {[%clk 0:02:31]} 16. b4 {[%clk 0:03:02]}  b6 {[%clk 0:02:26]} 17. Qc2 {[%clk 0:02:58]}  axb4 {[%clk 0:02:10]} 18. axb4 {[%clk 0:02:59]}  Ra7 {[%clk 0:02:07]} 19. Rfc1 {[%clk 0:02:33]}  Rfa8 {[%clk 0:02:05]} 20. Rb2 {[%clk 0:02:32]}  Ra3 {[%clk 0:02:02]} 21. Rcb1 {[%clk 0:02:32]}  Rc3 {[%clk 0:01:54]} 22. Qd1 {[%clk 0:02:29]}  Raa3 {[%clk 0:01:52]} 23. Rb3 {[%clk 0:02:29]}  Rcxb3 {[%clk 0:01:40]} 24. Rxb3 {[%clk 0:02:30]}  Qa7 {[%clk 0:01:40]} 25. Rxa3 {[%clk 0:02:30]}  Qxa3 {[%clk 0:01:39]} 26. Qb1 {[%clk 0:02:30]}  Bg5 {[%clk 0:01:30]} 27. g3 {[%clk 0:02:29]}  h6 {[%clk 0:01:18]} 28. h4 {[%clk 0:02:22]}  Bd2 {[%clk 0:01:18]} 29. b5 {[%clk 0:02:21]}  Bc3 {[%clk 0:01:05]} 30. Kg2 {[%clk 0:02:18]}  Kf8 {[%clk 0:01:04]} 31. Qf1 {[%clk 0:02:16]}  Qb2 {[%clk 0:00:57]} 32. Qd1 {[%clk 0:02:12]}  Ke7 {[%clk 0:00:52]} 33. Qa4 {[%clk 0:02:11]}  Qa1 {[%clk 0:00:48]} 34. Qc2 {[%clk 0:02:07]}  Qb2 {[%clk 0:00:42]} 35. Qd1 {[%clk 0:02:05]}  Qa2 {[%clk 0:00:41]} 36. Be2 {[%clk 0:02:04]}  Bb4 {[%clk 0:00:41]} 37. f4 {[%clk 0:02:04]}  f6 {[%clk 0:00:40]} 38. Kh3 {[%clk 0:02:01]}  Bc3 {[%clk 0:00:39]} 39. Qf1 {[%clk 0:02:01]}  Qd2 {[%clk 0:00:36]} 40. Bg4 {[%clk 0:01:57]}  Qe3 {[%clk 0:00:35]} 41. fxe5 {[%clk 0:01:56]}  Be1 {[%clk 0:00:28]} 42. exd6+ {[%clk 0:01:53]}  Kxd6 {[%clk 0:00:25]} 43. Qf4+ {[%clk 0:01:51]}  Qxf4 {[%clk 0:00:22]} 44. gxf4 {[%clk 0:01:52]}  Kc5 {[%clk 0:00:20]} 45. e5 {[%clk 0:01:49]}  fxe5 {[%clk 0:00:21]} 46. fxe5 {[%clk 0:01:50]}  Ba5 {[%clk 0:00:20]} 47. Bf3 {[%clk 0:01:48]}  Bd2 {[%clk 0:00:15]} 48. Kg4 {[%clk 0:01:48]}  Be1 {[%clk 0:00:14]} 49. h5 {[%clk 0:01:48]}  Bf2 {[%clk 0:00:14]} 50. Kf5 {[%clk 0:01:48]}  Bh4 {[%clk 0:00:13]} 51. Ke6 {[%clk 0:01:49]}  Bg5 {[%clk 0:00:12]} 52. Kd7 {[%clk 0:01:49]}  Bh4 {[%clk 0:00:11]} 53. e6 {[%clk 0:01:49]}  Bf6 {[%clk 0:00:07]} 54. e7 {[%clk 0:01:50]}  Bxe7 {[%clk 0:00:07]} 55. Kxe7 {[%clk 0:01:50]} 1-0


[Site "https://www.chess.com"]

[Event "Titled Tuesday Blitz May 24 Early 2022"]
[White "Svane, Rasmus"]
[Black "Darini, Pouria"]
[WhiteFideId "4657101"]
[BlackFideId "12502200"]
[WhiteElo "2674"]
[BlackElo "2483"]
[Result "1/2-1/2"]
[Round "03"]
[TimeControl "180+1"]
[Date "2022.05.24"]
[WhiteClock "0:00:50"]
[BlackClock "0:00:29"]

1. Nf3 {[%clk 0:03:00]}  c5 {[%clk 0:02:57]} 2. c4 {[%clk 0:03:01]}  Nc6 {[%clk 0:02:57]} 3. Nc3 {[%clk 0:03:01]}  Nf6 {[%clk 0:02:57]} 4. e3 {[%clk 0:03:01]}  e6 {[%clk 0:02:57]} 5. d4 {[%clk 0:03:01]}  d5 {[%clk 0:02:58]} 6. cxd5 {[%clk 0:03:01]}  exd5 {[%clk 0:02:55]} 7. Bb5 {[%clk 0:03:01]}  cxd4 {[%clk 0:02:54]} 8. Nxd4 {[%clk 0:03:02]}  Bd7 {[%clk 0:02:55]} 9. O-O {[%clk 0:03:03]}  Bd6 {[%clk 0:02:55]} 10. b3 {[%clk 0:03:03]}  O-O {[%clk 0:02:46]} 11. Nf3 {[%clk 0:03:03]}  a6 {[%clk 0:02:44]} 12. Be2 {[%clk 0:03:03]}  Be6 {[%clk 0:02:35]} 13. Bb2 {[%clk 0:03:03]}  Rc8 {[%clk 0:02:35]} 14. Rc1 {[%clk 0:03:03]}  Re8 {[%clk 0:02:36]} 15. Qd3 {[%clk 0:03:01]}  Ne5 {[%clk 0:02:31]} 16. Nxe5 {[%clk 0:02:36]}  Bxe5 {[%clk 0:02:32]} 17. Na4 {[%clk 0:02:35]}  Bxb2 {[%clk 0:02:27]} 18. Nxb2 {[%clk 0:02:36]}  Qa5 {[%clk 0:02:18]} 19. Na4 {[%clk 0:02:13]}  Bd7 {[%clk 0:01:54]} 20. Qd4 {[%clk 0:02:14]}  Bxa4 {[%clk 0:01:46]} 21. bxa4 {[%clk 0:02:15]}  h6 {[%clk 0:01:24]} 22. g3 {[%clk 0:02:12]}  Rc6 {[%clk 0:01:18]} 23. Rxc6 {[%clk 0:01:19]}  bxc6 {[%clk 0:01:19]} 24. Rc1 {[%clk 0:01:18]}  Re4 {[%clk 0:01:07]} 25. Qd3 {[%clk 0:00:56]}  c5 {[%clk 0:00:36]} 26. Qxa6 {[%clk 0:00:50]}  Qxa6 {[%clk 0:00:36]} 27. Bxa6 {[%clk 0:00:51]}  Rxa4 {[%clk 0:00:35]} 28. Bb5 {[%clk 0:00:49]}  Rxa2 {[%clk 0:00:29]} 29. Rxc5 {[%clk 0:00:50]} 1/2-1/2


[Site "https://www.chess.com"]